[Event "Titled Tuesday Blitz August 08 Early 2023"]
[White "Shubenkova, Veronika"]
[Black "Semenova, Alina"]
[WhiteFideId "44124040"]
[BlackFideId "24113875"]
[WhiteElo "2507"]
[BlackElo "2088"]
[Result "1-0"]
[Round "3"]
[TimeControl "180+1"]
[Date "2023.08.08"]
[WhiteClock "0:02:19"]
[BlackClock "0:01:11"]
[Board "197"]

1. c4 {[%clk 0:02:59]}  e6 {[%clk 0:02:58]} 2. Nc3 {[%clk 0:02:59]}  d5 {[%clk 0:02:58]} 3. cxd5 {[%clk 0:02:59]}  exd5 {[%clk 0:02:59]} 4. d4 {[%clk 0:02:59]}  Nf6 {[%clk 0:02:59]} 5. Nf3 {[%clk 0:03:00]}  Be7 {[%clk 0:02:59]} 6. e3 {[%clk 0:02:59]}  O-O {[%clk 0:02:59]} 7. Bd3 {[%clk 0:03:00]}  c6 {[%clk 0:02:51]} 8. O-O {[%clk 0:02:58]}  Nbd7 {[%clk 0:02:51]} 9. Qc2 {[%clk 0:02:58]}  h6 {[%clk 0:02:51]} 10. a3 {[%clk 0:02:58]}  Re8 {[%clk 0:02:51]} 11. b4 {[%clk 0:02:58]}  Nb6 {[%clk 0:02:39]} 12. Bb2 {[%clk 0:02:58]}  Bg4 {[%clk 0:02:37]} 13. Ne5 {[%clk 0:02:58]}  Be6 {[%clk 0:02:38]} 14. e4 {[%clk 0:02:57]}  dxe4 {[%clk 0:02:37]} 15. Nxe4 {[%clk 0:02:57]}  Nxe4 {[%clk 0:02:38]} 16. Bxe4 {[%clk 0:02:57]}  Bd5 {[%clk 0:02:35]} 17. Rfe1 {[%clk 0:02:57]}  Bxe4 {[%clk 0:02:32]} 18. Rxe4 {[%clk 0:02:57]}  Bf6 {[%clk 0:02:31]} 19. Rae1 {[%clk 0:02:56]}  Nd5 {[%clk 0:02:26]} 20. Rg4 {[%clk 0:02:51]}  Qd6 {[%clk 0:02:11]} 21. f4 {[%clk 0:02:49]}  h5 {[%clk 0:02:07]} 22. Rg3 {[%clk 0:02:44]}  Nxf4 {[%clk 0:02:04]} 23. Qf5 {[%clk 0:02:43]}  Bxe5 {[%clk 0:01:45]} 24. dxe5 {[%clk 0:02:38]}  Qd2 {[%clk 0:01:45]} 25. Bc3 {[%clk 0:02:31]}  Ne2+ {[%clk 0:01:44]} 26. Rxe2 {[%clk 0:02:32]}  Qxe2 {[%clk 0:01:43]} 27. Rxg7+ {[%clk 0:02:24]}  Kxg7 {[%clk 0:01:11]} 28. e6+ {[%clk 0:02:19]} 1-0


[Site "https://www.chess.com"]

[Event "Titled Tuesday Blitz August 08 Early 2023"]
[White "Pershina, Elena"]
[Black "Kosteniuk, Alexandra"]
[WhiteFideId "24147516"]
[BlackFideId "4128125"]
[WhiteElo "2389"]
[BlackElo "2768"]
[Result "0-1"]
[Round "3"]
[TimeControl "180+1"]
[Date "2023.08.08"]
[WhiteClock "0:00:00"]
[BlackClock "0:00:45"]
[Board "198"]

1. d4 {[%clk 0:03:00]}  Nf6 {[%clk 0:02:56]} 2. c4 {[%clk 0:03:01]}  g6 {[%clk 0:02:57]} 3. g3 {[%clk 0:03:00]}  Bg7 {[%clk 0:02:57]} 4. Nc3 {[%clk 0:02:59]}  O-O {[%clk 0:02:56]} 5. Bg2 {[%clk 0:03:00]}  d6 {[%clk 0:02:56]} 6. Nf3 {[%clk 0:03:00]}  Nc6 {[%clk 0:02:56]} 7. O-O {[%clk 0:02:58]}  e5 {[%clk 0:02:52]} 8. d5 {[%clk 0:02:52]}  Ne7 {[%clk 0:02:51]} 9. e4 {[%clk 0:02:52]}  h6 {[%clk 0:02:47]} 10. Ne1 {[%clk 0:02:50]}  Nh7 {[%clk 0:02:41]} 11. Nd3 {[%clk 0:02:49]}  f5 {[%clk 0:02:41]} 12. f4 {[%clk 0:02:27]}  fxe4 {[%clk 0:02:27]} 13. Nxe4 {[%clk 0:02:26]}  exf4 {[%clk 0:02:21]} 14. Bxf4 {[%clk 0:02:20]}  Nf5 {[%clk 0:02:17]} 15. Kh1 {[%clk 0:02:11]}  Nf6 {[%clk 0:02:12]} 16. Nxf6+ {[%clk 0:01:48]}  Rxf6 {[%clk 0:02:12]} 17. Qc2 {[%clk 0:01:36]}  Bd7 {[%clk 0:02:10]} 18. Rae1 {[%clk 0:01:35]}  Qf8 {[%clk 0:02:06]} 19. Bd2 {[%clk 0:01:29]}  Nd4 {[%clk 0:01:54]} 20. Qc1 {[%clk 0:01:28]}  Re8 {[%clk 0:01:51]} 21. Rxe8 {[%clk 0:01:24]}  Rxf1+ {[%clk 0:01:47]} 22. Qxf1 {[%clk 0:01:19]}  Bxe8 {[%clk 0:01:47]} 23. Qxf8+ {[%clk 0:01:14]}  Kxf8 {[%clk 0:01:48]} 24. Be4 {[%clk 0:01:04]}  g5 {[%clk 0:01:41]} 25. Kg2 {[%clk 0:01:03]}  Bh5 {[%clk 0:01:40]} 26. Bc3 {[%clk 0:01:00]}  Kf7 {[%clk 0:01:28]} 27. h3 {[%clk 0:00:59]}  Bd1 {[%clk 0:01:19]} 28. Nf2 {[%clk 0:00:47]}  Ba4 {[%clk 0:01:17]} 29. b3 {[%clk 0:00:46]}  Bd7 {[%clk 0:01:17]} 30. g4 {[%clk 0:00:43]}  Ne2 {[%clk 0:01:14]} 31. Bxg7 {[%clk 0:00:40]}  Nf4+ {[%clk 0:01:14]} 32. Kf3 {[%clk 0:00:38]}  Kxg7 {[%clk 0:01:15]} 33. Ke3 {[%clk 0:00:34]}  Kf6 {[%clk 0:01:15]} 34. Bc2 {[%clk 0:00:26]}  c6 {[%clk 0:01:12]} 35. dxc6 {[%clk 0:00:23]}  bxc6 {[%clk 0:01:11]} 36. Be4 {[%clk 0:00:22]}  Ke5 {[%clk 0:01:07]} 37. Bf3 {[%clk 0:00:18]}  d5 {[%clk 0:01:05]} 38. cxd5 {[%clk 0:00:17]}  cxd5 {[%clk 0:01:06]} 39. Nd3+ {[%clk 0:00:16]}  Nxd3 {[%clk 0:01:05]} 40. Kxd3 {[%clk 0:00:17]}  Bb5+ {[%clk 0:01:06]} 41. Kc3 {[%clk 0:00:15]}  Bf1 {[%clk 0:01:06]} 42. b4 {[%clk 0:00:13]}  Bxh3 {[%clk 0:01:04]} 43. a4 {[%clk 0:00:14]}  d4+ {[%clk 0:01:01]} 44. Kd2 {[%clk 0:00:11]}  Bf1 {[%clk 0:00:57]} 45. b5 {[%clk 0:00:10]}  Bc4 {[%clk 0:00:55]} 46. Be2 {[%clk 0:00:03]}  Bd5 {[%clk 0:00:48]} 47. Bd3 {[%clk 0:00:02]}  Kf4 {[%clk 0:00:46]} 48. Bf5 {[%clk 0:00:02]}  h5 {[%clk 0:00:46]} 49. a5 {[%clk 0:00:00]}  hxg4 {[%clk 0:00:45]} 0-1


[Site "https://www.chess.com"]

[Event "Titled Tuesday Blitz August 08 Early 2023"]
[White "Smiechu"]
[Black "Priasmoro, Novendra"]
[BlackFideId "7105029"]
[WhiteElo "2365"]
[BlackElo "2715"]
[Result "1-0"]
[Round "3"]
[TimeControl "180+1"]
[Date "2023.08.08"]
[WhiteClock "0:02:27"]
[BlackClock "0:00:50"]
[Board "199"]

1. e4 {[%clk 0:03:00]}  c5 {[%clk 0:02:09]} 2. Nf3 {[%clk 0:02:58]}  Nc6 {[%clk 0:02:10]} 3. d4 {[%clk 0:02:58]}  cxd4 {[%clk 0:02:11]} 4. Nxd4 {[%clk 0:02:59]}  Nf6 {[%clk 0:02:12]} 5. Nc3 {[%clk 0:02:59]}  e6 {[%clk 0:02:12]} 6. a3 {[%clk 0:02:58]}  Bc5 {[%clk 0:02:13]} 7. Be3 {[%clk 0:02:57]}  Nxd4 {[%clk 0:01:54]} 8. Bxd4 {[%clk 0:02:57]}  Bxd4 {[%clk 0:01:47]} 9. Qxd4 {[%clk 0:02:57]}  O-O {[%clk 0:01:47]} 10. e5 {[%clk 0:02:53]}  Ne8 {[%clk 0:01:40]} 11. O-O-O {[%clk 0:02:51]}  f6 {[%clk 0:01:38]} 12. f4 {[%clk 0:02:42]}  fxe5 {[%clk 0:01:29]} 13. fxe5 {[%clk 0:02:42]}  a6 {[%clk 0:01:26]} 14. Bd3 {[%clk 0:02:39]}  Qg5+ {[%clk 0:01:09]} 15. Kb1 {[%clk 0:02:39]}  Rf4 {[%clk 0:01:07]} 16. Ne4 {[%clk 0:02:34]}  Qh6 {[%clk 0:00:58]} 17. g3 {[%clk 0:02:31]}  Rf8 {[%clk 0:00:53]} 18. g4 {[%clk 0:02:30]}  b5 {[%clk 0:00:52]} 19. g5 {[%clk 0:02:29]}  Qh4 {[%clk 0:00:50]} 20. Nf6+ {[%clk 0:02:27]} 1-0


[Site "https://www.chess.com"]

[Event "Titled Tuesday Blitz August 08 Early 2023"]
[White "Lacasa Diaz, Jose Antonio"]
[Black "Williams, Simon K"]
[WhiteFideId "2203375"]
[BlackFideId "404454"]
[WhiteElo "2356"]
[BlackElo "2560"]
[Result "1-0"]
[Round "3"]
[TimeControl "180+1"]
[Date "2023.08.08"]
[WhiteClock "0:00:23"]
[BlackClock "0:00:09"]
[Board "201"]

1. Nf3 {[%clk 0:03:00]}  f5 {[%clk 0:02:58]} 2. e4 {[%clk 0:02:53]}  fxe4 {[%clk 0:02:57]} 3. Ng5 {[%clk 0:02:54]}  Nc6 {[%clk 0:02:53]} 4. d3 {[%clk 0:02:49]}  e3 {[%clk 0:02:52]} 5. Bxe3 {[%clk 0:02:45]}  e5 {[%clk 0:02:48]} 6. c4 {[%clk 0:02:35]}  Be7 {[%clk 0:02:47]} 7. Ne4 {[%clk 0:02:25]}  Nf6 {[%clk 0:02:45]} 8. Nbc3 {[%clk 0:02:25]}  O-O {[%clk 0:02:43]} 9. Be2 {[%clk 0:02:22]}  Nd4 {[%clk 0:02:37]} 10. Bxd4 {[%clk 0:02:10]}  exd4 {[%clk 0:02:34]} 11. Nxf6+ {[%clk 0:02:08]}  Bxf6 {[%clk 0:02:26]} 12. Ne4 {[%clk 0:02:08]}  Be5 {[%clk 0:02:21]} 13. O-O {[%clk 0:02:00]}  c6 {[%clk 0:02:08]} 14. Nd2 {[%clk 0:01:52]}  Qh4 {[%clk 0:02:01]} 15. g3 {[%clk 0:01:46]}  Qh6 {[%clk 0:02:01]} 16. f4 {[%clk 0:01:42]}  Bc7 {[%clk 0:01:56]} 17. Nf3 {[%clk 0:01:33]}  d5 {[%clk 0:01:29]} 18. cxd5 {[%clk 0:01:31]}  Bh3 {[%clk 0:01:20]} 19. dxc6 {[%clk 0:01:23]}  Bxf1 {[%clk 0:00:58]} 20. Bxf1 {[%clk 0:01:08]}  Qxc6 {[%clk 0:00:50]} 21. Rc1 {[%clk 0:01:06]}  Qd6 {[%clk 0:00:47]} 22. Ng5 {[%clk 0:00:59]}  Kh8 {[%clk 0:00:38]} 23. Qh5 {[%clk 0:00:52]}  h6 {[%clk 0:00:20]} 24. Nf7+ {[%clk 0:00:52]}  Rxf7 {[%clk 0:00:20]} 25. Qxf7 {[%clk 0:00:53]}  Bb6 {[%clk 0:00:20]} 26. Bg2 {[%clk 0:00:50]}  Rf8 {[%clk 0:00:19]} 27. Qxb7 {[%clk 0:00:46]}  Qe6 {[%clk 0:00:18]} 28. Be4 {[%clk 0:00:41]}  Qg4 {[%clk 0:00:14]} 29. Qe7 {[%clk 0:00:33]}  Rg8 {[%clk 0:00:14]} 30. Qf7 {[%clk 0:00:26]}  Qe2 {[%clk 0:00:13]} 31. Qg6 {[%clk 0:00:23]}  Qe3+ {[%clk 0:00:12]} 32. Kg2 {[%clk 0:00:24]}  Qe2+ {[%clk 0:00:09]} 33. Kh3 {[%clk 0:00:23]} 1-0


[Site "https://www.chess.com"]

[Event "Titled Tuesday Blitz August 08 Early 2023"]
[White "Hnydiuk, Aleksander"]
[Black "Korpics, Zsolt"]
[WhiteFideId "1109057"]
[BlackFideId "705241"]
[WhiteElo "2501"]
[BlackElo "2349"]
[Result "1-0"]
[Round "3"]
[TimeControl "180+1"]
[Date "2023.08.08"]
[WhiteClock "0:00:26"]
[BlackClock "0:00:00"]
[Board "203"]

1. d4 {[%clk 0:03:00]}  Nf6 {[%clk 0:02:59]} 2. c4 {[%clk 0:03:01]}  e6 {[%clk 0:02:58]} 3. Nf3 {[%clk 0:03:00]}  b6 {[%clk 0:02:57]} 4. a3 {[%clk 0:02:58]}  Ba6 {[%clk 0:02:57]} 5. Qc2 {[%clk 0:02:54]}  Bb7 {[%clk 0:02:56]} 6. Nc3 {[%clk 0:02:53]}  c5 {[%clk 0:02:56]} 7. Bg5 {[%clk 0:02:30]}  cxd4 {[%clk 0:02:41]} 8. Nxd4 {[%clk 0:02:29]}  h6 {[%clk 0:02:40]} 9. Bh4 {[%clk 0:02:26]}  a6 {[%clk 0:02:27]} 10. e4 {[%clk 0:02:24]}  d6 {[%clk 0:02:25]} 11. Be2 {[%clk 0:02:23]}  Be7 {[%clk 0:02:24]} 12. O-O {[%clk 0:02:22]}  O-O {[%clk 0:02:23]} 13. f4 {[%clk 0:02:12]}  Nbd7 {[%clk 0:02:23]} 14. b4 {[%clk 0:02:05]}  Rc8 {[%clk 0:02:19]} 15. f5 {[%clk 0:02:04]}  e5 {[%clk 0:02:15]} 16. Nb3 {[%clk 0:02:01]}  b5 {[%clk 0:02:13]} 17. Na5 {[%clk 0:01:56]}  Ba8 {[%clk 0:02:11]} 18. Rad1 {[%clk 0:01:43]}  bxc4 {[%clk 0:02:03]} 19. Bxc4 {[%clk 0:01:39]}  Nb6 {[%clk 0:02:00]} 20. Bxa6 {[%clk 0:01:36]}  Rxc3 {[%clk 0:01:12]} 21. Qxc3 {[%clk 0:01:33]}  Nxe4 {[%clk 0:01:01]} 22. Bxe7 {[%clk 0:01:33]}  Qxe7 {[%clk 0:01:01]} 23. Qe3 {[%clk 0:01:31]}  d5 {[%clk 0:00:52]} 24. Qxb6 {[%clk 0:01:28]}  d4 {[%clk 0:00:46]} 25. Nc6 {[%clk 0:01:12]}  Qg5 {[%clk 0:00:39]} 26. Rd3 {[%clk 0:00:58]}  Nf6 {[%clk 0:00:25]} 27. Rg3 {[%clk 0:00:54]}  Qd2 {[%clk 0:00:16]} 28. Nxe5 {[%clk 0:00:47]}  Ne4 {[%clk 0:00:15]} 29. Rd3 {[%clk 0:00:32]}  Qb2 {[%clk 0:00:11]} 30. Qxd4 {[%clk 0:00:30]}  Nc3 {[%clk 0:00:10]} 31. Rd2 {[%clk 0:00:27]}  Ne2+ {[%clk 0:00:10]} 32. Bxe2 {[%clk 0:00:27]}  Qxa3 {[%clk 0:00:00]} 33. Bf3 {[%clk 0:00:26]} 1-0


[Site "https://www.chess.com"]

[Event "Titled Tuesday Blitz August 08 Early 2023"]
[White "Nemec, Jachym"]
[Black "Maung, Maung Kyaw Zaw Hein"]
[WhiteFideId "23716525"]
[BlackFideId "13001698"]
[WhiteElo "2500"]
[BlackElo "2338"]
[Result "1-0"]
[Round "3"]
[TimeControl "180+1"]
[Date "2023.08.08"]
[WhiteClock "0:00:15"]
[BlackClock "0:00:04"]
[Board "204"]

1. Nf3 {[%clk 0:03:00]}  c6 {[%clk 0:02:58]} 2. g3 {[%clk 0:03:00]}  d5 {[%clk 0:02:59]} 3. Bg2 {[%clk 0:03:00]}  Nf6 {[%clk 0:02:59]} 4. O-O {[%clk 0:02:59]}  Bf5 {[%clk 0:03:00]} 5. d3 {[%clk 0:02:59]}  h6 {[%clk 0:03:00]} 6. Nbd2 {[%clk 0:02:59]}  Nbd7 {[%clk 0:02:59]} 7. Qe1 {[%clk 0:02:59]}  e6 {[%clk 0:02:59]} 8. e4 {[%clk 0:02:59]}  dxe4 {[%clk 0:02:59]} 9. dxe4 {[%clk 0:02:59]}  Bh7 {[%clk 0:02:59]} 10. a3 {[%clk 0:02:56]}  Be7 {[%clk 0:02:55]} 11. e5 {[%clk 0:02:52]}  Nd5 {[%clk 0:02:55]} 12. c4 {[%clk 0:02:52]}  N5b6 {[%clk 0:02:54]} 13. b3 {[%clk 0:02:52]}  a5 {[%clk 0:02:53]} 14. Bb2 {[%clk 0:02:50]}  O-O {[%clk 0:02:52]} 15. Qe3 {[%clk 0:02:40]}  Nc5 {[%clk 0:02:47]} 16. Bd4 {[%clk 0:02:32]}  Nbd7 {[%clk 0:02:33]} 17. Rfd1 {[%clk 0:02:31]}  Qc7 {[%clk 0:02:31]} 18. Rac1 {[%clk 0:02:28]}  Nd3 {[%clk 0:02:24]} 19. Rc3 {[%clk 0:02:20]}  N3c5 {[%clk 0:02:24]} 20. Bf1 {[%clk 0:01:56]}  b6 {[%clk 0:02:03]} 21. h4 {[%clk 0:01:55]}  Rfd8 {[%clk 0:02:00]} 22. h5 {[%clk 0:01:54]}  Nb8 {[%clk 0:01:53]} 23. Nh2 {[%clk 0:01:36]}  Ncd7 {[%clk 0:01:46]} 24. Qf4 {[%clk 0:01:19]}  Bxa3 {[%clk 0:01:37]} 25. Rf3 {[%clk 0:01:16]}  Nf8 {[%clk 0:01:36]} 26. Ng4 {[%clk 0:01:14]}  Na6 {[%clk 0:01:11]} 27. Re1 {[%clk 0:00:59]}  Bc5 {[%clk 0:01:08]} 28. Bc3 {[%clk 0:00:56]}  Bb4 {[%clk 0:01:05]} 29. Ne4 {[%clk 0:00:47]}  Bxe4 {[%clk 0:00:59]} 30. Qxe4 {[%clk 0:00:46]}  Bxc3 {[%clk 0:00:58]} 31. Rxc3 {[%clk 0:00:46]}  Nc5 {[%clk 0:00:55]} 32. Qf4 {[%clk 0:00:46]}  Qb7 {[%clk 0:00:50]} 33. Rf3 {[%clk 0:00:45]}  Nh7 {[%clk 0:00:43]} 34. Nxh6+ {[%clk 0:00:28]}  gxh6 {[%clk 0:00:42]} 35. Qxh6 {[%clk 0:00:29]}  Rd4 {[%clk 0:00:32]} 36. Rf4 {[%clk 0:00:19]}  Rxf4 {[%clk 0:00:32]} 37. Qxf4 {[%clk 0:00:20]}  Qe7 {[%clk 0:00:30]} 38. Bg2 {[%clk 0:00:20]}  Qg5 {[%clk 0:00:27]} 39. Qf3 {[%clk 0:00:20]}  Rd8 {[%clk 0:00:25]} 40. Qxc6 {[%clk 0:00:19]}  Qd2 {[%clk 0:00:22]} 41. Rf1 {[%clk 0:00:20]}  Nxb3 {[%clk 0:00:19]} 42. Qxb6 {[%clk 0:00:20]}  Ng5 {[%clk 0:00:16]} 43. h6 {[%clk 0:00:20]}  a4 {[%clk 0:00:14]} 44. Qa7 {[%clk 0:00:19]}  Nc1 {[%clk 0:00:11]} 45. c5 {[%clk 0:00:17]}  Ne2+ {[%clk 0:00:11]} 46. Kh1 {[%clk 0:00:18]}  Qd4 {[%clk 0:00:07]} 47. Qb6 {[%clk 0:00:17]}  Nc3 {[%clk 0:00:07]} 48. Qc7 {[%clk 0:00:15]}  Qd7 {[%clk 0:00:06]} 49. Qa5 {[%clk 0:00:15]}  Nd5 {[%clk 0:00:04]} 50. c6 {[%clk 0:00:15]}  Qxc6 {[%clk 0:00:04]} 51. Qxd8+ {[%clk 0:00:15]}  Kh7 {[%clk 0:00:04]} 52. Qxg5 {[%clk 0:00:15]}  a3 {[%clk 0:00:04]} 53. Qg7# {[%clk 0:00:15]} 1-0


[Site "https://www.chess.com"]

[Event "Titled Tuesday Blitz August 08 Early 2023"]
[White "Glavina, Pablo"]
[Black "Ncatt"]
[WhiteFideId "100234"]
[WhiteElo "2500"]
[BlackElo "2322"]
[Result "1-0"]
[Round "3"]
[TimeControl "180+1"]
[Date "2023.08.08"]
[WhiteClock "0:02:36"]
[BlackClock "0:01:20"]
[Board "205"]

1. c4 {[%clk 0:03:00]}  c6 {[%clk 0:02:57]} 2. d4 {[%clk 0:03:00]}  d5 {[%clk 0:02:57]} 3. cxd5 {[%clk 0:03:01]}  cxd5 {[%clk 0:02:56]} 4. Bf4 {[%clk 0:03:02]}  Nf6 {[%clk 0:02:56]} 5. Nc3 {[%clk 0:03:01]}  Nc6 {[%clk 0:02:57]} 6. e3 {[%clk 0:03:02]}  a6 {[%clk 0:02:57]} 7. Be2 {[%clk 0:03:02]}  Bf5 {[%clk 0:02:57]} 8. Nf3 {[%clk 0:03:01]}  e6 {[%clk 0:02:58]} 9. Qb3 {[%clk 0:03:01]}  Na5 {[%clk 0:02:51]} 10. Qa4+ {[%clk 0:03:01]}  b5 {[%clk 0:02:52]} 11. Nxb5 {[%clk 0:03:02]}  axb5 {[%clk 0:02:50]} 12. Bxb5+ {[%clk 0:03:02]}  Nd7 {[%clk 0:02:46]} 13. Ne5 {[%clk 0:03:03]}  Nc6 {[%clk 0:02:38]} 14. Nxc6 {[%clk 0:03:00]}  Rxa4 {[%clk 0:02:36]} 15. Nxd8 {[%clk 0:03:00]}  Bb4+ {[%clk 0:02:31]} 16. Ke2 {[%clk 0:02:57]}  Ra5 {[%clk 0:02:30]} 17. Bxd7+ {[%clk 0:02:55]}  Kxd8 {[%clk 0:02:28]} 18. Bc6 {[%clk 0:02:55]}  Ke7 {[%clk 0:02:24]} 19. Rhc1 {[%clk 0:02:52]}  f6 {[%clk 0:02:19]} 20. a3 {[%clk 0:02:48]}  Bd6 {[%clk 0:02:07]} 21. Bxd6+ {[%clk 0:02:48]}  Kxd6 {[%clk 0:02:08]} 22. b4 {[%clk 0:02:48]}  Ra7 {[%clk 0:02:09]} 23. a4 {[%clk 0:02:43]}  e5 {[%clk 0:02:07]} 24. b5 {[%clk 0:02:41]}  exd4 {[%clk 0:02:06]} 25. exd4 {[%clk 0:02:42]}  Re7+ {[%clk 0:02:06]} 26. Kd2 {[%clk 0:02:42]}  Re4 {[%clk 0:01:54]} 27. Kc3 {[%clk 0:02:37]}  Re2 {[%clk 0:01:52]} 28. a5 {[%clk 0:02:36]}  Rxf2 {[%clk 0:01:52]} 29. a6 {[%clk 0:02:36]}  Re8 {[%clk 0:01:50]} 30. a7 {[%clk 0:02:35]}  Re3+ {[%clk 0:01:49]} 31. Kb4 {[%clk 0:02:35]}  Rb2+ {[%clk 0:01:20]} 32. Ka5 {[%clk 0:02:36]} 1-0


[Site "https://www.chess.com"]

[Event "Titled Tuesday Blitz August 08 Early 2023"]
[White "Vovk, Orest"]
[Black "Mikhaylova, Irina"]
[WhiteFideId "14113490"]
[BlackFideId "4109040"]
[WhiteElo "2473"]
[BlackElo "2260"]
[Result "1-0"]
[Round "3"]
[TimeControl "180+1"]
[Date "2023.08.08"]
[WhiteClock "0:00:26"]
[BlackClock "0:00:00"]
[Board "209"]

1. g4 {[%clk 0:02:49]}  d5 {[%clk 0:02:59]} 2. h3 {[%clk 0:02:48]}  c6 {[%clk 0:03:00]} 3. Bg2 {[%clk 0:02:48]}  e6 {[%clk 0:02:59]} 4. d4 {[%clk 0:02:47]}  Nd7 {[%clk 0:02:54]} 5. Nf3 {[%clk 0:02:47]}  Bd6 {[%clk 0:02:53]} 6. O-O {[%clk 0:02:47]}  Ngf6 {[%clk 0:02:43]} 7. c4 {[%clk 0:02:43]}  O-O {[%clk 0:02:42]} 8. Nc3 {[%clk 0:02:43]}  dxc4 {[%clk 0:02:29]} 9. e4 {[%clk 0:02:42]}  e5 {[%clk 0:02:24]} 10. g5 {[%clk 0:02:29]}  Ne8 {[%clk 0:01:27]} 11. dxe5 {[%clk 0:02:27]}  Bc7 {[%clk 0:00:43]} 12. Bf4 {[%clk 0:02:22]}  Qe7 {[%clk 0:00:43]} 13. Qd4 {[%clk 0:02:19]}  b5 {[%clk 0:00:38]} 14. Rad1 {[%clk 0:02:05]}  Nc5 {[%clk 0:00:34]} 15. Be3 {[%clk 0:01:58]}  Bb6 {[%clk 0:00:20]} 16. Qd2 {[%clk 0:01:50]}  Be6 {[%clk 0:00:19]} 17. Nd4 {[%clk 0:01:46]}  Rc8 {[%clk 0:00:19]} 18. f4 {[%clk 0:01:29]}  Bd7 {[%clk 0:00:15]} 19. Nf5 {[%clk 0:01:21]}  Bxf5 {[%clk 0:00:14]} 20. exf5 {[%clk 0:01:22]}  Nd3 {[%clk 0:00:14]} 21. Bxb6 {[%clk 0:01:20]}  axb6 {[%clk 0:00:14]} 22. f6 {[%clk 0:01:18]}  Qc5+ {[%clk 0:00:11]} 23. Kh2 {[%clk 0:01:19]}  Nc7 {[%clk 0:00:10]} 24. Ne4 {[%clk 0:01:09]}  Qd4 {[%clk 0:00:10]} 25. fxg7 {[%clk 0:01:01]}  Kxg7 {[%clk 0:00:09]} 26. Qe2 {[%clk 0:01:01]}  Nd5 {[%clk 0:00:08]} 27. Qg4 {[%clk 0:00:47]}  Rce8 {[%clk 0:00:07]} 28. Nf6 {[%clk 0:00:46]}  Kh8 {[%clk 0:00:05]} 29. Bxd5 {[%clk 0:00:33]}  cxd5 {[%clk 0:00:03]} 30. Qh4 {[%clk 0:00:28]}  Qxb2+ {[%clk 0:00:00]} 31. Kh1 {[%clk 0:00:26]} 1-0


[Site "https://www.chess.com"]

[Event "Titled Tuesday Blitz August 08 Early 2023"]
[White "Polaczek, Richard"]
[Black "Mitrovic, Darko R"]
[WhiteFideId "200026"]
[BlackFideId "927023"]
[WhiteElo "2414"]
[BlackElo "2112"]
[Result "0-1"]
[Round "3"]
[TimeControl "180+1"]
[Date "2023.08.08"]
[WhiteClock "0:00:05"]
[BlackClock "0:00:08"]
[Board "211"]

1. d4 {[%clk 0:02:59]}  e6 {[%clk 0:03:00]} 2. c4 {[%clk 0:02:58]}  Nf6 {[%clk 0:03:00]} 3. Nc3 {[%clk 0:02:57]}  Bb4 {[%clk 0:03:00]} 4. f3 {[%clk 0:02:57]}  Bxc3+ {[%clk 0:02:59]} 5. bxc3 {[%clk 0:02:56]}  d5 {[%clk 0:03:00]} 6. cxd5 {[%clk 0:02:53]}  exd5 {[%clk 0:03:00]} 7. e3 {[%clk 0:02:52]}  O-O {[%clk 0:02:59]} 8. Bd3 {[%clk 0:02:51]}  c5 {[%clk 0:02:57]} 9. Ne2 {[%clk 0:02:48]}  c4 {[%clk 0:02:51]} 10. Bc2 {[%clk 0:02:47]}  Nc6 {[%clk 0:02:49]} 11. O-O {[%clk 0:02:46]}  b5 {[%clk 0:02:49]} 12. e4 {[%clk 0:02:38]}  a5 {[%clk 0:02:46]} 13. e5 {[%clk 0:02:37]}  Ne8 {[%clk 0:02:40]} 14. f4 {[%clk 0:02:35]}  b4 {[%clk 0:02:36]} 15. f5 {[%clk 0:02:10]}  Qb6 {[%clk 0:02:01]} 16. Kh1 {[%clk 0:02:00]}  bxc3 {[%clk 0:01:44]} 17. f6 {[%clk 0:01:44]}  Nb4 {[%clk 0:01:20]} 18. Ba4 {[%clk 0:01:32]}  Nd3 {[%clk 0:01:00]} 19. Bxe8 {[%clk 0:01:19]}  Rxe8 {[%clk 0:00:59]} 20. Ba3 {[%clk 0:00:37]}  Bg4 {[%clk 0:00:56]} 21. h3 {[%clk 0:00:17]}  Bxe2 {[%clk 0:00:56]} 22. Qxe2 {[%clk 0:00:17]}  Qxd4 {[%clk 0:00:56]} 23. Be7 {[%clk 0:00:14]}  Nxe5 {[%clk 0:00:25]} 24. Rad1 {[%clk 0:00:13]}  Nd3 {[%clk 0:00:24]} 25. Qh5 {[%clk 0:00:12]}  Qe5 {[%clk 0:00:13]} 26. Qg4 {[%clk 0:00:11]}  g6 {[%clk 0:00:12]} 27. Rf3 {[%clk 0:00:08]}  Rxe7 {[%clk 0:00:11]} 28. fxe7 {[%clk 0:00:07]}  Qxe7 {[%clk 0:00:12]} 29. Qd4 {[%clk 0:00:07]}  c2 {[%clk 0:00:09]} 30. Rdf1 {[%clk 0:00:06]}  c1=Q {[%clk 0:00:08]} 31. Rxc1 {[%clk 0:00:07]}  Nxc1 {[%clk 0:00:09]} 32. Qxd5 {[%clk 0:00:06]}  Re8 {[%clk 0:00:09]} 33. Qc6 {[%clk 0:00:05]}  Nd3 {[%clk 0:00:07]} 34. Qxc4 {[%clk 0:00:04]}  Ne5 {[%clk 0:00:06]} 35. Qd5 {[%clk 0:00:03]}  Nxf3 {[%clk 0:00:06]} 36. Qxf3 {[%clk 0:00:04]}  Qe1+ {[%clk 0:00:07]} 37. Kh2 {[%clk 0:00:04]}  Qe5+ {[%clk 0:00:07]} 38. Qg3 {[%clk 0:00:04]}  Qxg3+ {[%clk 0:00:07]} 39. Kxg3 {[%clk 0:00:04]}  Re2 {[%clk 0:00:08]} 40. Kf3 {[%clk 0:00:05]}  Rxa2 {[%clk 0:00:08]} 41. g4 {[%clk 0:00:05]}  a4 {[%clk 0:00:09]} 42. Kf4 {[%clk 0:00:05]}  a3 {[%clk 0:00:09]} 43. Ke5 {[%clk 0:00:05]}  Rh2 {[%clk 0:00:09]} 44. Kd6 {[%clk 0:00:05]}  Rxh3 {[%clk 0:00:09]} 45. Kc5 {[%clk 0:00:06]}  Rg3 {[%clk 0:00:09]} 46. Kb5 {[%clk 0:00:07]}  Rxg4 {[%clk 0:00:09]} 47. Kc5 {[%clk 0:00:07]}  h5 {[%clk 0:00:09]} 48. Kd6 {[%clk 0:00:05]}  a2 {[%clk 0:00:08]} 0-1


[Site "https://www.chess.com"]

[Event "Titled Tuesday Blitz August 08 Early 2023"]
[White "Iunusovnuriddin"]
[Black "splendidkid"]
[WhiteElo "2298"]
[BlackElo "2724"]
[Result "0-1"]
[Round "3"]
[TimeControl "180+1"]
[Date "2023.08.08"]
[WhiteClock "0:00:02"]
[BlackClock "0:02:08"]
[Board "214"]

1. e4 {[%clk 0:02:59]}  c5 {[%clk 0:02:58]} 2. Nc3 {[%clk 0:02:55]}  Nc6 {[%clk 0:02:58]} 3. Nge2 {[%clk 0:02:53]}  d6 {[%clk 0:02:55]} 4. g3 {[%clk 0:02:50]}  g6 {[%clk 0:02:55]} 5. Bg2 {[%clk 0:02:50]}  Bg7 {[%clk 0:02:55]} 6. O-O {[%clk 0:02:51]}  Rb8 {[%clk 0:02:54]} 7. d3 {[%clk 0:02:49]}  b5 {[%clk 0:02:52]} 8. f4 {[%clk 0:02:13]}  b4 {[%clk 0:02:48]} 9. Nd5 {[%clk 0:02:11]}  a5 {[%clk 0:02:45]} 10. c3 {[%clk 0:02:06]}  Ba6 {[%clk 0:02:40]} 11. Be3 {[%clk 0:01:29]}  e6 {[%clk 0:02:31]} 12. cxb4 {[%clk 0:00:55]}  exd5 {[%clk 0:02:27]} 13. bxc5 {[%clk 0:00:51]}  d4 {[%clk 0:02:24]} 14. cxd6 {[%clk 0:00:34]}  dxe3 {[%clk 0:02:23]} 15. e5 {[%clk 0:00:35]}  Nb4 {[%clk 0:02:19]} 16. Rf3 {[%clk 0:00:19]}  Nh6 {[%clk 0:02:15]} 17. Nd4 {[%clk 0:00:15]}  O-O {[%clk 0:02:13]} 18. Rxe3 {[%clk 0:00:15]}  Qb6 {[%clk 0:02:10]} 19. Re4 {[%clk 0:00:02]}  Nf5 {[%clk 0:02:08]} 0-1


[Site "https://www.chess.com"]